bitfinex-derivatives/quotes_ETHF0:USTF0_20251028
["timestamp","ask_amount","ask_price","bid_price","bid_amount"]
[1761666442715,0.35023255,4099.5,4099.4,0.7774]
[1761666443021,0.3475,4099.0,4098.6,0.3318]
[1761666443220,0.5725,4098.7,4098.6,0.2318]
[1761666443517,0.5725,4098.7,4098.6,0.4456]
[1761666443718,0.5725,4098.7,4098.6,0.7774]
[1761666444020,0.1266,4099.2,4099.0,0.2318]
[1761666444021,0.5725,4099.1,4099.0,0.2318]
[1761666444218,0.7975,4099.1,4099.0,0.2318]
[1761666444519,0.7975,4099.1,4098.7,0.3318]
[1761666444520,0.3475,4098.8,4098.7,0.7774]
[1761666444822,0.5725,4099.1,4099.0,0.2318]
[1761666445313,0.00273255,4099.5,4099.3,0.2318]
[1761666445314,0.5725,4099.4,4099.3,0.2318]
[1761666445820,0.00273255,4099.5,4099.4,0.7774]
[1761666446317,0.35023255,4099.5,4099.4,0.7774]
[1761666446510,0.00273255,4099.5,4099.4,0.7774]
[1761666446713,0.80023255,4099.5,4099.4,0.4456]
[1761666446918,0.3475,4099.4,4099.0,0.3318]
[1761666447310,0.5725,4098.8,4098.7,0.2318]
[1761666447509,0.5725,4098.8,4098.7,0.7774]
[1761666447708,0.45,4098.8,4098.3,0.3318]
[1761666447920,0.3475,4098.7,4098.3,0.77102]
[1761666448111,0.5725,4098.7,4098.6,0.2318]
[1761666448421,0.1266,4099.2,4098.0,0.0698]
[1761666448422,0.7975,4098.1,4098.0,1.30108699]
[1761666448722,0.3475,4098.0,4097.9,0.2318]
[1761666449521,0.3475,4098.0,4097.9,0.7774]
[1761666449719,0.3475,4098.5,4097.9,0.7774]
[1761666450020,0.5725,4098.0,4097.9,0.4456]
[1761666450212,0.5725,4098.0,4097.5,0.33492219]
[1761666450213,0.3475,4097.9,4097.5,0.33492219]
[1761666451620,0.5725,4097.9,4097.8,0.7774]
[1761666452320,0.5725,4097.9,4097.8,0.851]
[1761666452723,0.5725,4097.9,4097.8,0.7774]
[1761666452922,0.5725,4097.9,4097.8,0.851]
[1761666453123,0.3475,4097.9,4097.8,0.7774]
[1761666453324,0.3475,4098.5,4097.8,0.7774]
[1761666455118,0.1266,4098.6,4097.5,0.00312219]
[1761666455119,0.2176,4097.6,4097.5,0.00312219]
[1761666455325,0.7667,4097.6,4097.5,0.00312219]
[1761666456223,0.7667,4097.6,4097.5,0.23542219]
[1761666456614,0.7667,4097.6,4097.5,0.44952219]
[1761666457821,0.469,4098.0,4097.5,0.44952219]
[1761666458123,0.553,4098.3,4098.2,0.4464]
[1761666458428,0.3442,4098.6,4098.5,0.2323]
[1761666458832,0.1266,4099.2,4098.6,0.3416]
[1761666459127,0.1266,4099.2,4099.1,0.788]
[1761666459128,0.553,4099.2,4099.1,0.788]
[1761666459327,0.00273255,4099.5,4098.8,0.43917]
[1761666459328,0.00273255,4099.5,4099.4,0.788]
[1761666460025,0.00273255,4099.5,4099.4,0.8608]
[1761666460325,0.55573255,4099.5,4099.4,0.8608]
[1761666460523,0.33813255,4099.5,4099.4,0.788]
[1761666460924,0.76943255,4099.5,4099.4,0.2323]
[1761666461525,0.00273255,4099.5,4099.4,0.8608]
[1761666462731,0.00273255,4099.5,4099.4,2.16188699]
[1761666462926,0.00273255,4099.5,4099.4,0.8608]
[1761666463533,0.6866,4100.4,4100.3,0.2323]
[1761666463829,0.6866,4100.4,4099.9,0.3416]
[1761666463830,0.3354,4099.9,4099.5,0.3416]
[1761666464026,0.1336,4099.8,4099.5,0.3416]
[1761666464230,0.553,4099.5,4099.4,0.2323]
[1761666464532,0.55506706,4099.5,4099.4,0.788]
[1761666464724,0.00206706,4099.5,4099.4,0.788]
[1761666464925,0.00206706,4099.5,4099.4,2.16188699]
[1761666465233,0.00206706,4099.5,4099.4,0.8608]
[1761666466024,0.00206706,4099.5,4099.4,2.16188699]
[1761666466223,0.00206706,4099.5,4099.4,0.8608]
[1761666466730,0.3354,4100.6,4099.8,0.43905]
[1761666466931,0.553,4100.6,4100.5,0.2323]
[1761666467228,0.7667,4100.6,4100.5,0.2323]
[1761666467737,0.76842506,4100.6,4100.5,0.44934959]
[1761666468034,0.76842506,4100.6,4100.5,0.00294959]
[1761666468229,0.84122506,4100.6,4100.5,0.00294959]
[1761666468425,0.76842506,4100.6,4100.5,0.00294959]
[1761666470730,0.00172506,4100.6,4100.5,0.86374959]
[1761666470938,0.55472506,4100.6,4100.5,0.44934959]
[1761666471230,0.76842506,4100.6,4100.5,0.23524959]
[1761666471429,0.00172506,4100.6,4100.5,0.86374959]
[1761666471636,0.00172506,4100.6,4100.5,0.79094959]
[1761666472031,0.00172506,4100.6,4100.5,0.86374959]
[1761666472333,0.76842506,4100.6,4100.5,0.23524959]
[1761666472537,0.76842506,4100.6,4100.5,0.00294959]
[1761666472936,0.00172506,4100.6,4100.5,0.79094959]
[1761666473632,0.3354,4102.1,4101.5,0.2141]
[1761666474035,0.553,4101.6,4101.5,0.4464]
[1761666474435,0.55479298,4101.6,4101.5,0.4464]
[1761666474937,0.3354,4101.5,4100.9,0.3416]
[1761666475537,0.43309298,4101.6,4101.5,0.4464]
[1761666475834,0.56669298,4101.6,4101.1,0.3416]
[1761666476032,0.553,4101.5,4101.4,0.788]
[1761666477540,0.3354,4101.4,4101.1,0.43892]
[1761666477729,0.553,4101.4,4101.3,0.2323]
[1761666477929,0.553,4101.4,4101.3,0.788]
[1761666478131,0.00179298,4101.6,4101.3,0.788]
[1761666478329,0.55479298,4101.6,4101.5,0.788]
[1761666478542,0.55479298,4101.6,4101.5,0.4464]
[1761666478733,0.00179298,4101.6,4101.4,0.4464]
[1761666478938,0.00179298,4101.6,4101.5,0.788]
[1761666479338,0.55479298,4101.6,4101.5,0.4464]
[1761666479532,0.00179298,4101.6,4101.5,0.788]
[1761666479732,0.00179298,4101.6,4101.5,0.8608]
[1761666480630,0.00179298,4101.6,4101.5,1.29968]
[1761666481745,0.86530691,4104.1,4101.0,1.22463]
[1761666481746,0.3354,4103.1,4103.0,0.5557]
[1761666482046,0.3354,4103.1,4102.4,0.43878]
[1761666482047,0.553,4102.5,4102.4,0.2323]
[1761666482246,0.7667,4102.5,4102.4,0.2323]
[1761666482843,0.76860941,4102.5,4102.4,0.4464]
[1761666483040,0.55490941,4102.5,4102.4,0.8608]
[1761666483240,0.00190941,4102.5,4102.4,1.29958]
[1761666483835,0.00190941,4102.5,4102.4,1.42290611]
[1761666484240,0.00190941,4102.5,4102.4,1.49570611]
[1761666484441,0.00190941,4102.5,4102.4,0.8608]
[1761666484641,0.00190941,4102.5,4102.4,0.788]
[1761666485253,0.00190941,4102.5,4102.4,1.22678]
[1761666485445,0.00190941,4102.5,4102.4,0.788]
[1761666485641,0.43730941,4102.5,4101.6,0.0677]
[1761666485850,0.43730941,4102.5,4102.0,0.2111]
[1761666485851,0.5609,4102.1,4102.0,0.2111]
[1761666486258,0.5609,4102.1,4102.0,0.7555]
[1761666486654,0.5609,4102.1,4101.6,0.50656]
[1761666486655,0.3416,4102.0,4101.5,0.323]
[1761666487159,0.3416,4102.0,4101.6,0.323]
[1761666487355,0.5609,4102.0,4101.9,0.2111]
[1761666487562,0.5609,4101.7,4101.6,0.2111]
[1761666487862,0.5627,4101.3,4101.2,0.2271]
[1761666488054,0.00190941,4102.5,4101.5,0.4528]
[1761666488055,0.35090941,4102.5,4101.5,0.4528]
[1761666488255,0.56460941,4102.5,4102.4,0.4528]
[1761666489958,0.56460941,4102.5,4102.4,0.854]
[1761666490159,0.00190941,4102.5,4102.4,0.854]
[1761666491959,0.00190941,4102.5,4102.4,0.7812]
[1761666492159,0.5627,4103.9,4103.8,0.4528]
[1761666492367,0.5627,4104.5,4104.4,0.7812]
[1761666492555,0.5627,4104.5,4103.5,1.09667]
[1761666492556,0.4297,4104.5,4104.0,0.3284]
[1761666492761,0.349,4104.4,4104.3,0.2271]
[1761666492960,0.2137,4104.2,4103.7,0.3284]
[1761666493166,0.5627,4104.2,4104.1,0.2292702]
[1761666494769,0.7787,4104.2,4104.1,0.0021702]
[1761666494958,0.8515,4104.2,4104.1,0.0021702]
[1761666495159,0.349,4104.1,4102.7,0.3284]
[1761666495360,0.349,4103.9,4102.7,0.76715]
[1761666495573,0.349,4103.9,4102.8,0.3284]
[1761666495767,0.349,4103.9,4102.8,0.76713]
[1761666495968,0.349,4103.9,4102.9,0.3284]
[1761666496267,0.349,4103.9,4103.0,0.76711]
[1761666496873,0.349,4103.9,4103.0,0.3284]
[1761666497165,0.349,4103.9,4103.0,0.76711]
[1761666497362,0.349,4103.9,4103.4,0.43867]
[1761666497563,0.5627,4103.9,4103.8,0.2271]
[1761666498368,0.2137,4103.6,4103.5,0.2271]
[1761666498562,0.2137,4103.1,4103.0,0.2271]
[1761666498763,0.4297,4103.1,4103.0,0.2271]
[1761666499160,0.5627,4103.1,4103.0,0.4528]
[1761666499361,0.7787,4103.0,4102.9,0.0017222]
[1761666499766,0.5627,4103.0,4102.9,0.4545222]
[1761666500166,0.7787,4103.0,4102.9,0.0017222]
[1761666500469,8.7787,4103.0,4102.9,0.0017222]
[1761666500770,8.8515,4103.0,4102.9,0.0017222]
[1761666500969,0.8515,4103.0,4102.9,0.0017222]
[1761666501170,0.8515,4103.0,4100.7,14.634]
[1761666501171,0.5627,4101.4,4101.3,0.2271]
[1761666501371,0.349,4101.3,4100.9,0.76734]
[1761666501670,0.5627,4101.3,4101.2,0.2271]
[1761666501870,0.7787,4101.3,4101.2,0.2271]
[1761666502175,0.78135214,4101.3,4101.2,0.00189849]
[1761666502861,0.85415214,4101.3,4101.2,0.00189849]
[1761666503468,0.85415214,4101.3,4099.7,0.3284]
[1761666503469,0.349,4101.2,4099.7,0.3284]
[1761666503773,0.4218,4101.2,4099.6,0.43908]
[1761666503969,0.349,4100.9,4099.4,0.7675]
[1761666504170,0.349,4100.9,4099.4,0.3284]
[1761666504374,0.349,4100.7,4099.4,0.76968923]
[1761666504768,0.349,4100.7,4099.5,0.43909]
[1761666504967,0.349,4100.7,4099.7,0.43906]
[1761666505162,0.349,4100.7,4099.5,0.43909]
[1761666505471,0.349,4100.7,4099.5,0.76749]
[1761666505975,0.349,4100.7,4099.6,0.76748]
[1761666508567,0.349,4100.7,4099.6,0.3284]
[1761666509270,0.349,4100.7,4099.7,0.3284]
[1761666509471,0.349,4100.7,4099.7,0.76747]
[1761666509969,0.349,4100.7,4099.7,0.3284]
[1761666510366,0.349,4100.7,4099.4,0.44128923]
[1761666510367,0.5627,4099.5,4099.4,0.00218923]
[1761666510673,0.5627,4099.5,4099.4,0.45498923]
[1761666511872,0.7787,4099.5,4099.4,0.00218923]
[1761666512872,0.349,4099.5,4099.4,0.78338923]
[1761666513067,0.5627,4099.5,4099.4,0.45498923]
[1761666513765,0.7787,4099.5,4099.4,0.45498923]
[1761666514775,0.7787,4099.5,4099.4,0.22928923]
[1761666514972,0.7787,4099.5,4099.4,0.00218923]
[1761666516379,0.7787,4099.5,4099.4,0.22108923]
[1761666517082,0.5613,4100.9,4100.8,0.2189]
[1761666517280,0.5613,4100.9,4100.8,0.7773]
[1761666517471,0.23465214,4101.3,4101.2,0.2189]
[1761666517668,0.44525214,4101.3,4101.2,0.2189]
[1761666517970,0.7719,4100.4,4100.3,0.2189]
[1761666518477,0.7719,4100.4,4100.3,0.4395]
[1761666518875,0.3293,4100.3,4099.7,0.3378]
[1761666519076,0.5613,4100.3,4100.2,0.2189]
[1761666520379,0.5613,4100.3,4100.2,0.4395]
[1761666521577,0.3293,4100.9,4100.2,0.7773]
[1761666521774,0.5613,4100.3,4100.2,0.4395]
[1761666521980,0.7719,4100.3,4100.2,0.2189]
[1761666522477,0.1327,4101.0,4100.3,0.2206]
[1761666522478,0.3293,4100.7,4100.3,0.2206]
[1761666522678,0.7719,4100.7,4100.2,0.43901]
[1761666522877,0.7719,4100.3,4100.2,0.2189]
[1761666524282,0.7719,4100.3,4100.2,0.65792]
[1761666524478,0.7719,4100.3,4100.2,0.2189]
[1761666525181,0.7719,4100.3,4100.2,0.4395]
[1761666525379,0.7719,4100.3,4100.2,1.21632]
[1761666525777,0.3647,4101.0,4100.9,0.2189]
[1761666525978,0.23465214,4101.3,4101.2,0.2189]
[1761666526180,0.00265214,4101.3,4101.2,0.7773]
[1761666526377,0.77455214,4101.3,4101.2,0.4395]
[1761666526571,0.77455214,4101.3,4100.8,0.2189]
[1761666526572,0.5613,4100.9,4100.8,0.2189]
[1761666527276,0.7719,4100.9,4100.8,0.2189]
[1761666527480,0.00265214,4101.3,4099.8,4.99566]
[1761666527481,0.00265214,4101.3,4101.2,0.7773]
[1761666527886,0.33195214,4101.3,4101.2,0.7773]
[1761666528383,0.00265214,4101.3,4101.2,0.7773]
[1761666529482,0.3293,4103.3,4101.3,0.3378]
[1761666529683,0.3293,4103.1,4102.5,0.3378]
[1761666529878,0.5613,4102.1,4102.0,0.5567]
[1761666530080,0.3293,4102.7,4102.0,1.21612]
[1761666530378,0.3293,4102.7,4102.6,0.2189]
[1761666530379,0.5613,4102.7,4102.6,0.2189]
[1761666530577,0.56395648,4102.7,4102.6,0.22171743]
[1761666532989,0.77455648,4102.7,4102.6,0.22171743]
[1761666533376,0.77455648,4102.7,4102.6,0.00281743]
[1761666533580,0.84735648,4102.7,4102.6,0.00281743]
[1761666533980,0.77455648,4102.7,4102.6,0.00281743]
[1761666535880,0.84735648,4102.7,4102.6,0.00281743]
[1761666536082,0.77455648,4102.7,4102.6,0.00281743]
[1761666538288,0.84735648,4102.7,4102.6,0.00281743]
[1761666543491,0.77455648,4102.7,4102.6,0.00281743]
[1761666543799,0.7719,4101.2,4101.1,1.21622]
[1761666543994,0.5613,4101.2,4101.1,1.21622]
[1761666544387,0.1327,4101.5,4101.1,0.7773]
[1761666544592,0.5696,4101.5,4101.4,0.4261]
[1761666544793,0.5696,4101.5,4101.4,0.42893968]
[1761666545000,0.9077,4101.5,4101.4,0.42893968]
[1761666547493,0.9077,4101.5,4101.4,0.21883968]
[1761666547686,0.9077,4101.5,4101.4,0.00283968]
[1761666548091,0.9077,4101.5,4101.4,0.22503968]
[1761666548902,0.9077,4101.5,4101.4,0.00283968]
[1761666549596,0.9805,4101.5,4101.4,0.00283968]
[1761666549789,0.9077,4101.5,4101.4,0.00283968]
[1761666552294,0.775,4101.5,4101.4,0.76103968]
[1761666552496,0.556,4101.5,4101.4,0.76103968]
[1761666553089,0.91,4101.5,4101.4,0.00283968]
[1761666553296,0.9828,4101.5,4101.4,0.00283968]
[1761666553690,0.91,4101.5,4101.4,0.00283968]
[1761666553894,0.9828,4101.5,4101.4,0.00283968]
[1761666554202,0.91,4101.5,4101.4,0.00283968]
[1761666554400,0.9828,4101.5,4101.4,0.00283968]
[1761666554602,0.4363,4100.4,4100.3,1.30796746]
[1761666554903,0.7637,4100.4,4100.3,0.2222]
[1761666555101,0.7637,4100.3,4100.1,1.30796746]
[1761666555300,0.7637,4100.3,4099.8,0.43906]
[1761666555301,0.7637,4100.1,4100.0,0.66124]
[1761666555505,0.3274,4100.1,4100.0,1.19724]
[1761666555805,0.2214,4100.2,4100.1,0.2222]
[1761666555997,0.2149,4100.2,4100.1,2.50954803]
[1761666556203,0.3475,4100.5,4100.4,0.4352]
[1761666556596,0.1326,4101.0,4100.4,0.4352]
[1761666556597,0.5689,4101.0,4100.9,0.2222]
[1761666556904,0.8963,4101.0,4100.9,0.2222]
[1761666557104,0.8963,4101.0,4100.9,0.66114]
[1761666557308,0.8963,4101.0,4100.9,0.87414]
[1761666557699,0.8963,4101.0,4100.9,1.19714]
[1761666558102,0.7637,4101.0,4100.9,1.19714]
[1761666558301,0.5423,4101.0,4100.9,1.19714]
[1761666560011,0.8963,4101.0,4100.9,0.4352]
[1761666560907,0.8963,4101.0,4100.9,0.2222]
[1761666563505,0.7637,4100.7,4100.6,1.53451803]
[1761666563704,0.7637,4100.7,4100.6,0.2222]
[1761666565314,0.7637,4100.6,4100.5,1.31231803]
[1761666565615,0.8963,4100.5,4100.4,1.31231803]
[1761666565909,0.7637,4100.4,4100.2,1.31231803]
[1761666566215,0.1326,4100.5,4100.0,1.31445629]
[1761666566216,0.4363,4100.1,4100.0,1.31445629]
[1761666566409,0.7637,4100.1,4100.0,1.31445629]
[1761666566610,0.7637,4100.1,4100.0,1.53665629]
[1761666567114,0.7637,4100.1,4100.0,0.43733826]
[1761666567518,0.7637,4100.1,4100.0,1.19937826]
[1761666568418,0.7637,4100.1,4100.0,1.74965629]
[1761666568616,0.7637,4100.1,4100.0,0.43733826]
[1761666568812,0.7637,4100.1,4100.0,0.22433826]
[1761666569514,0.7637,4100.1,4100.0,0.76033826]
[1761666570215,0.7637,4100.1,4100.0,0.43733826]
[1761666571414,0.7637,4100.1,4100.0,0.87637826]
[1761666571611,0.5689,4101.0,4100.9,0.7582]
[1761666572016,0.8963,4101.0,4100.9,0.7582]
[1761666572216,0.8963,4101.0,4100.9,0.4352]
[1761666577123,0.7562,4101.4,4101.3,0.219]
[1761666577618,0.5432,4101.1,4101.0,0.219]
[1761666577820,0.7562,4101.1,4101.0,0.219]
[1761666578926,0.7562,4101.1,4101.0,0.4379]
[1761666579832,0.7562,4101.1,4101.0,0.219]
[1761666580035,0.7562,4101.1,4101.0,1.20703]
[1761666580328,0.7562,4101.1,4101.0,2.51919893]
[1761666583229,0.7562,4101.1,4101.0,2.08026893]
[1761666583923,0.7562,4101.1,4101.0,1.31216893]
[1761666584127,0.884,4100.5,4100.4,1.31216893]
[1761666584332,0.3234,4100.9,4100.4,1.31446765]
[1761666584630,0.5364,4100.9,4100.8,2.08243356]
[1761666584831,0.7562,4100.9,4100.8,2.08243356]
[1761666585327,0.7562,4100.9,4100.8,1.75223356]
[1761666585523,0.7562,4100.8,4100.7,1.31433356]
[1761666586131,0.7562,4100.7,4100.6,1.53333356]
[1761666586819,0.7562,4100.6,4100.5,1.31433356]
[1761666587021,0.884,4100.5,4100.4,1.31433356]
[1761666587631,0.7562,4100.1,4100.0,0.22113826]
[1761666587833,0.7562,4100.1,4100.0,1.31675047]
[1761666588131,0.7562,4100.1,4100.0,0.00213826]
[1761666591633,0.7562,4100.1,4100.0,0.44003826]
[1761666591827,0.7562,4100.1,4100.0,0.77023826]
[1761666593332,0.7562,4100.1,4100.0,1.20927826]
[1761666593837,0.7562,4100.1,4100.0,0.77023826]
[1761666594630,0.5364,4100.1,4100.0,0.77023826]
[1761666595331,0.1278,4101.0,4100.0,0.77023826]
[1761666595332,0.1278,4101.0,4100.9,0.219]
[1761666595528,0.5606,4101.0,4100.9,0.4379]
[1761666595930,0.884,4101.0,4100.9,0.4379]
[1761666598136,0.7562,4100.7,4100.6,0.7681]
[1761666598536,0.7562,4100.7,4100.6,1.20707]
[1761666598840,0.7562,4100.7,4100.6,0.7681]
[1761666599038,0.7562,4100.7,4100.6,0.219]
[1761666600340,0.7562,4100.7,4100.6,0.4379]
[1761666600538,0.5606,4101.0,4100.9,0.4379]
[1761666600837,0.213,4101.5,4101.4,0.7681]
[1761666601141,0.5364,4101.5,4101.4,0.7681]
[1761666601339,0.5364,4101.5,4101.4,1.20699]
[1761666601640,0.5364,4102.0,4101.9,0.5492]
[1761666601944,0.5364,4102.0,4101.4,0.219]
[1761666601945,0.884,4101.5,4101.4,0.219]
[1761666602243,0.4328,4101.3,4101.2,1.31250206]
[1761666602437,0.4328,4101.3,4101.0,1.31250206]
[1761666602438,0.213,4101.1,4101.0,1.31250206]
[1761666602634,0.7562,4101.1,4101.0,2.08060206]
[1761666602940,0.1278,4102.0,4101.9,0.219]
[1761666602941,0.5606,4102.0,4101.9,0.219]
[1761666603244,0.213,4102.0,4101.9,0.7681]
[1761666603438,0.1278,4102.5,4101.9,0.7681]
[1761666603439,0.884,4102.5,4102.4,0.7681]
[1761666603646,0.3234,4103.1,4102.6,0.7681]
[1761666604237,0.3234,4103.1,4102.6,0.8409]
[1761666605146,0.3234,4103.1,4102.6,0.7681]
[1761666605537,0.33665648,4102.7,4102.6,0.7681]
[1761666606145,0.5633,4103.5,4103.4,0.2155]
[1761666606342,0.5633,4103.5,4103.4,0.7687]
[1761666606553,0.3419,4104.0,4103.9,0.7687]
[1761666606742,0.2141,4104.0,4103.9,0.7687]
[1761666607044,0.7695,4104.0,4103.9,0.4444]
[1761666607243,0.91101581,4104.0,4103.9,0.00181452]
[1761666609644,0.98381581,4104.0,4103.9,0.00181452]
[1761666610948,0.91101581,4104.0,4103.9,0.00181452]
[1761666611745,0.91101581,4104.0,4103.9,0.23251452]
[1761666612040,0.91101581,4104.0,4103.9,0.00181452]
[1761666612440,0.91101581,4104.0,4103.9,0.45671452]
[1761666612641,0.77121581,4104.0,4103.9,0.79381452]
[1761666612843,0.90111581,4104.0,4103.9,0.23251452]
[1761666613047,0.54981581,4104.0,4103.9,0.79381452]
[1761666613551,0.89281581,4104.0,4103.9,0.45671452]
[1761666614151,0.00171581,4104.0,4103.9,0.79381452]
[1761666614354,0.87561581,4104.0,4103.9,0.45671452]
[1761666614552,0.53261581,4104.0,4103.9,0.79381452]
[1761666615251,0.00171581,4104.0,4103.9,0.79381452]
[1761666616150,0.74571581,4104.0,4103.9,1.23244452]
[1761666616355,0.00171581,4104.0,4103.9,1.23244452]
[1761666617049,0.3417,4106.0,4105.9,0.2307]
[1761666617254,0.1299,4106.5,4106.0,0.792]
[1761666617457,0.1299,4106.5,4106.0,0.9248]
[1761666617754,0.449,4106.5,4106.0,0.9248]
[1761666617955,0.5309,4106.9,4106.8,0.2307]
[1761666618157,0.5309,4106.9,4106.8,0.794243]
[1761666618158,0.53385042,4106.9,4106.8,0.794243]
[1761666618651,0.53385042,4106.9,4106.8,0.867043]
[1761666618857,0.53385042,4106.9,4106.8,0.794243]
[1761666619156,1.18526042,4106.9,4106.8,0.794243]
[1761666619749,1.18526042,4106.9,4106.8,0.002243]
[1761666619951,1.18526042,4106.9,4106.8,0.457143]
[1761666620151,0.74695042,4106.9,4106.8,0.457143]
[1761666620355,0.00295042,4106.9,4106.8,0.794243]
[1761666620547,0.00295042,4106.9,4106.8,0.867043]
[1761666621854,0.00295042,4106.9,4106.8,0.794243]
[1761666622256,0.00295042,4106.9,4106.8,0.867043]
[1761666622854,0.00295042,4106.9,4106.8,0.794243]
[1761666623058,0.74695042,4106.9,4106.8,0.232943]
[1761666623955,0.74695042,4106.9,4106.8,0.794243]
[1761666624150,0.00295042,4106.9,4106.8,0.794243]
[1761666624355,0.00295042,4106.9,4106.8,0.867043]
[1761666624659,0.00295042,4106.9,4106.8,0.794243]
[1761666624872,0.74695042,4106.9,4106.8,0.794243]
[1761666625468,0.74695042,4106.9,4106.8,0.002243]
[1761666625668,1.1824,4106.0,4105.9,0.5678]
[1761666625865,1.1824,4106.0,4105.9,0.2307]
[1761666626573,1.1824,4106.0,4105.9,0.23303809]
[1761666627770,1.1824,4106.0,4105.9,0.79433809]
[1761666627976,1.1824,4106.0,4105.9,0.45723809]
[1761666628177,1.1824,4106.0,4105.9,0.23303809]
[1761666628375,1.1824,4106.0,4105.9,0.00233809]
[1761666629273,1.3123,4106.0,4105.9,0.00233809]
[1761666630373,1.3851,4106.0,4105.9,0.00233809]
[1761666630875,0.744,4105.1,4105.0,14.626]
[1761666631674,0.744,4105.1,4105.0,14.8567]
[1761666631975,0.744,4105.1,4105.0,14.85921901]
[1761666633770,0.744,4105.1,4105.0,0.00251901]
[1761666634168,0.8168,4105.1,4105.0,0.00251901]
[1761666634574,0.744,4105.1,4105.0,0.00251901]
[1761666634979,0.9158,4105.5,4105.4,0.2142]
[1761666635477,0.7859,4105.1,4105.0,0.00251901]
[1761666635976,0.8587,4105.1,4105.0,0.00251901]
[1761666636169,0.7859,4105.1,4105.0,0.00251901]
[1761666636372,0.8587,4105.1,4105.0,0.00251901]
[1761666637080,0.7859,4105.1,4105.0,0.00251901]
[1761666637580,0.2231,4105.1,4105.0,0.75491901]
[1761666637787,0.5607,4105.4,4105.3,1.1909]
[1761666638277,0.7859,4105.4,4105.3,0.2142]
[1761666638480,0.7859,4105.1,4105.0,0.00251901]
[1761666638881,8.7859,4105.1,4105.0,0.00251901]
[1761666639077,0.7859,4105.1,4105.0,0.00251901]
[1761666640275,0.8587,4105.1,4105.0,0.00251901]
[1761666641478,0.7859,4105.1,4105.0,0.00251901]
[1761666641671,0.1384,4105.5,4105.4,0.2142]
[1761666641672,0.9243,4105.5,4105.4,0.2142]
[1761666641873,0.9243,4105.5,4105.0,0.00251901]
[1761666641874,0.2231,4105.2,4105.0,0.00251901]
[1761666642177,0.7859,4105.1,4105.0,0.00251901]
[1761666642683,0.7859,4105.1,4105.0,0.21671901]
[1761666642985,0.7859,4105.1,4105.0,0.75491901]
[1761666643980,0.7859,4105.1,4105.0,0.00251901]
[1761666644181,0.7859,4105.1,4105.0,0.21671901]
[1761666644368,0.7859,4105.1,4105.0,0.75491901]
[1761666644775,0.7859,4105.1,4105.0,0.43821901]
[1761666645682,0.5607,4105.1,4105.0,0.75491901]
[1761666646079,0.476,4105.5,4105.4,0.2142]
[1761666646282,0.9243,4105.5,4105.4,0.2142]
[1761666646472,0.9243,4105.5,4105.4,0.7524]
[1761666646678,0.7859,4105.5,4105.4,0.7524]
[1761666648282,0.7859,4105.9,4105.8,0.2142]
[1761666648487,0.7859,4105.9,4105.8,0.7524]
[1761666648781,0.7859,4105.9,4105.8,0.4357]
[1761666649184,0.5607,4106.3,4106.2,0.5382]
[1761666649385,0.5607,4106.3,4106.2,0.7524]
[1761666650681,0.2231,4106.3,4106.2,0.7524]
[1761666650884,0.99908,4106.6,4106.5,0.5382]
[1761666651085,0.99908,4106.6,4106.5,0.7524]
[1761666651086,0.5607,4106.6,4106.5,0.7524]
[1761666651279,0.56365042,4106.9,4106.8,0.5382]
[1761666651586,0.56365042,4106.9,4106.8,0.7524]
[1761666651988,0.2231,4106.5,4106.4,0.96928]
[1761666652190,0.9243,4106.5,4106.4,0.2142]
[1761666652578,0.7859,4105.8,4105.7,0.5309]
[1761666652775,0.7859,4105.8,4105.7,0.7524]
[1761666653283,0.99914,4106.0,4105.9,0.7524]
[1761666653680,0.5607,4105.6,4105.5,1.19088]
[1761666653882,0.66154,4106.0,4105.9,0.7524]
[1761666654284,0.99913,4106.0,4105.9,0.7524]
[1761666654881,0.5607,4106.0,4105.9,0.7524]
[1761666655392,1.09883042,4106.9,4106.6,0.7524]
[1761666655393,0.5607,4106.7,4106.6,0.7524]
[1761666655686,1.22719042,4106.9,4106.8,0.2142]
[1761666656085,0.00295042,4106.9,4106.8,1.19075]
[1761666656287,0.00295042,4106.9,4106.8,1.26355]
[1761666657390,0.00295042,4106.9,4106.8,0.8252]
[1761666657692,0.00295042,4106.9,4106.8,0.7524]
[1761666657894,0.00295042,4106.9,4106.8,0.8252]
[1761666658391,0.00295042,4106.9,4106.8,3.97999579]
[1761666658588,0.00295042,4106.9,4106.8,0.7524]
[1761666659292,0.7859,4107.6,4107.5,0.7524]
[1761666659487,0.7859,4107.6,4107.5,0.2142]
[1761666659794,0.1384,4108.0,4107.1,1.19072]
[1761666659795,0.2231,4107.2,4107.1,1.19072]
[1761666660292,0.1384,4109.0,4107.7,0.7524]
[1761666660293,0.3376,4108.3,4107.7,0.7524]
[1761666660595,0.02471927,4107.8,4107.7,0.7524]
[1761666661381,0.47301927,4107.8,4107.7,0.4357]
[1761666661585,0.2231,4107.4,4107.3,0.5309]
[1761666661784,0.2231,4107.4,4106.5,1.45148388]
[1761666661785,0.02471927,4107.8,4107.7,0.7524]
[1761666661986,0.02471927,4107.8,4107.7,1.19065]
[1761666662186,0.5607,4108.7,4108.6,0.7524]
[1761666662390,0.1384,4109.0,4108.9,0.2142]
[1761666662391,0.5867,4109.0,4108.9,0.2142]
[1761666662788,0.5867,4109.0,4108.9,0.7524]
[1761666662789,0.2231,4109.0,4108.9,0.7524]
[1761666662989,0.5607,4109.3,4109.2,0.2142]
[1761666663189,0.78800284,4109.3,4109.2,0.2170014]
[1761666663686,0.78800284,4109.3,4109.2,0.0028014]
[1761666663885,0.86080284,4109.3,4109.2,0.0028014]
[1761666664294,0.78800284,4109.3,4109.2,0.0028014]
[1761666664494,0.86080284,4109.3,4109.2,0.0028014]
[1761666664692,0.4453,4108.2,4108.1,0.2215]
[1761666664993,0.4453,4108.2,4107.9,0.4426]